bitfinex/quotes_BTCUSD_20220205
["timestamp","ask_amount","ask_price","bid_price","bid_amount"]
[1644087828569,0.00011449,41679.0,41673.0,0.00016628]
[1644087828770,0.00011449,41679.0,41675.0,0.00070996]
[1644087829670,0.00011449,41679.0,41674.0,0.00016628]
[1644087829871,0.049247,41680.0,41675.0,0.33605584]
[1644087830076,0.1238,41681.0,41675.0,0.33605584]
[1644087830270,0.048606,41682.0,41675.0,0.33605584]
[1644087830870,0.29037764,41682.0,41675.0,0.33534588]
[1644087831126,0.29037764,41682.0,41676.0,0.00070994]
[1644087831322,0.29037764,41682.0,41676.0,0.00087622]
[1644087832121,0.29037764,41682.0,41676.0,0.00016628]
[1644087832321,0.29037764,41682.0,41677.0,0.00070994]
[1644087832726,0.29049213,41682.0,41677.0,0.00070994]
[1644087833324,0.32701758,41679.0,41673.0,0.00016628]
[1644087833525,0.34288471,41678.0,41677.0,0.00070994]
[1644087833726,0.3429992,41678.0,41677.0,0.00070994]
[1644087834125,0.3909992,41678.0,41677.0,0.00070994]
[1644087834526,0.22855222,41675.0,41673.0,0.00016628]
[1644087834729,0.22855222,41675.0,41672.0,0.02010514]
[1644087835470,0.22855222,41675.0,41670.0,0.00016628]
[1644087835671,0.22855222,41675.0,41669.0,0.0011]
[1644087835871,0.048606,41674.0,41671.0,0.00070999]
[1644087836870,0.048606,41674.0,41670.0,0.00016628]
[1644087837072,0.048606,41674.0,41670.0,0.00071001]
[1644087837275,0.00011449,41671.0,41670.0,0.00087629]
[1644087837473,0.00011449,41671.0,41670.0,0.00071001]
[1644087837674,0.04872049,41671.0,41670.0,0.00071001]
[1644087837878,0.13954785,41671.0,41670.0,0.00071001]
[1644087838072,0.13954785,41671.0,41669.0,0.0011]
[1644087838073,0.18754785,41671.0,41669.0,0.0011]
[1644087838275,0.44897252,41671.0,41669.0,0.0011]
[1644087838472,0.048606,41670.0,41669.0,0.0011]
[1644087838722,0.096606,41670.0,41669.0,0.0011]
[1644087838922,0.20200667,41670.0,41669.0,0.0011]
[1644087839724,0.53533438,41670.0,41669.0,0.0011]
[1644087840323,0.53149109,41670.0,41669.0,0.0011]
[1644087840925,0.42993371,41670.0,41669.0,0.0011]
[1644087841728,0.42993371,41670.0,41669.0,0.00071381]
[1644087843567,0.42951687,41670.0,41669.0,0.00071381]
[1644087843873,0.09605278,41670.0,41669.0,0.00071381]
[1644087844868,0.04805278,41670.0,41669.0,0.00071381]
[1644087846527,0.00011449,41679.0,41669.0,0.30071381]
[1644087846528,0.1318813,41679.0,41669.0,0.30071381]
[1644087846725,0.1318813,41682.0,41678.0,0.04988551]
[1644087846923,0.16018457,41684.0,41681.0,0.04988551]
[1644087846924,0.29206587,41684.0,41681.0,0.04988551]
[1644087847128,0.1318813,41685.0,41683.0,0.22412731]
[1644087847326,0.1799253,41685.0,41684.0,0.04988551]
[1644087847527,0.048044,41685.0,41684.0,0.04988551]
[1644087848525,0.048044,41685.0,41684.0,0.32011078]
[1644087851373,0.6268813,41686.0,41684.0,0.42011078]
[1644087851574,0.495,41686.0,41685.0,0.3]
[1644087851972,0.495,41686.0,41685.0,0.348]
[1644087852170,0.495,41686.0,41685.0,0.683482]
[1644087852372,0.00070916,41692.0,41685.0,0.783482]
[1644087852672,0.01808713,41698.0,41691.0,0.04988551]
[1644087852871,0.06613113,41698.0,41697.0,0.04988551]
[1644087853271,0.06613113,41698.0,41697.0,0.27664496]
[1644087853723,0.00026001,41701.0,41697.0,0.54277796]
[1644087853921,0.048044,41701.0,41700.0,0.04988551]
[1644087854123,0.048044,41702.0,41700.0,0.04988551]
[1644087854321,0.00026001,41703.0,41700.0,0.04988551]
[1644087854521,0.048044,41703.0,41700.0,0.04988551]
[1644087855522,0.00096908,41704.0,41700.0,0.04988551]
[1644087855722,0.00096908,41704.0,41703.0,0.04988551]
[1644087855922,0.00070907,41704.0,41703.0,0.04988551]
[1644087856126,5.0,41705.0,41703.0,0.04988551]
[1644087856322,4.99992974,41705.0,41704.0,0.2302733]
[1644087856523,4.99992974,41705.0,41704.0,0.82111703]
[1644087856723,4.99934974,41705.0,41704.0,0.48045693]
[1644087856926,4.99934974,41705.0,41704.0,0.58045693]
[1644087857124,4.99934974,41705.0,41704.0,0.62845693]
[1644087858370,4.99934974,41705.0,41704.0,0.72845693]
[1644087858573,4.99934974,41705.0,41704.0,0.29818363]
[1644087858775,4.99934974,41705.0,41703.0,0.04988551]
[1644087859570,4.99934974,41705.0,41704.0,0.19657517]
[1644087859872,4.99934974,41705.0,41704.0,0.4474121]
[1644087860274,4.99934974,41705.0,41704.0,0.29657517]
[1644087861424,4.99934974,41705.0,41704.0,0.19657517]
[1644087861623,4.99684974,41705.0,41704.0,0.19657517]
[1644087862821,4.99684974,41705.0,41703.0,0.04988551]
[1644087863023,0.048044,41704.0,41703.0,0.04988551]
[1644087863225,0.048044,41704.0,41700.0,0.14988551]
[1644087863422,0.04830401,41704.0,41700.0,0.14988551]
[1644087863624,0.04830401,41704.0,41700.0,0.04988551]
[1644087864029,0.2735916,41704.0,41700.0,0.04988551]
[1644087864224,0.04830401,41704.0,41700.0,0.04988551]
[1644087864872,0.04901268,41704.0,41700.0,0.04988551]
[1644087865172,0.04901268,41704.0,41703.0,0.04988551]
[1644087865370,0.04875267,41704.0,41703.0,0.04988551]
[1644087865575,0.08906458,41702.0,41691.0,0.04988551]
[1644087865773,0.00011449,41700.0,41695.0,0.04988551]
[1644087866170,0.00011449,41700.0,41692.0,1.0]
[1644087866372,0.00011449,41700.0,41689.0,0.04988551]
[1644087866576,0.348,41704.0,41687.0,0.35461429]
[1644087866577,0.38851377,41695.0,41687.0,0.35461429]
[1644087866774,0.38851377,41695.0,41687.0,0.80472878]
[1644087867272,0.048044,41692.0,41691.0,0.04988551]
[1644087867670,0.00066758,41693.0,41691.0,0.04988551]
[1644087868071,0.00026001,41700.0,41691.0,0.04988551]
[1644087868273,0.048,41700.0,41691.0,0.04988551]
[1644087868477,0.00066757,41694.0,41690.0,0.04988551]
[1644087868724,0.00066757,41694.0,41687.0,0.30472878]
[1644087868725,0.37775174,41692.0,41686.0,0.04988551]
[1644087868927,0.30244337,41691.0,41679.0,0.5718608]
[1644087869133,0.00011449,41688.0,41679.0,0.52197529]
[1644087869324,0.00011449,41688.0,41684.0,0.04988551]
[1644087869525,0.048044,41687.0,41684.0,0.04988551]
[1644087869924,0.00011449,41688.0,41684.0,0.04988551]
[1644087870525,0.048044,41687.0,41684.0,0.04988551]
[1644087870728,0.00011449,41685.0,41679.0,0.04988551]
[1644087870926,0.04815849,41685.0,41677.0,0.00067063]
[1644087871326,0.048044,41683.0,41677.0,0.00067063]
[1644087871525,0.30176371,41683.0,41677.0,0.00067063]
[1644087871731,0.30176371,41683.0,41676.0,0.51561203]
[1644087871926,0.30176371,41683.0,41678.0,0.22225174]
[1644087873073,0.048,41684.0,41678.0,0.22225174]
[1644087873074,0.00011449,41682.0,41678.0,0.22225174]
[1644087873874,0.048,41684.0,41678.0,0.27213725]
[1644087874074,0.048,41684.0,41683.0,0.42826201]
[1644087875076,0.00011449,41688.0,41683.0,0.42826201]
[1644087875475,0.00011449,41688.0,41685.0,0.23743444]
[1644087875676,0.048,41690.0,41685.0,0.23743444]
[1644087875879,0.00067019,41692.0,41688.0,0.04988551]
[1644087876133,0.00067019,41692.0,41691.0,0.38536751]
[1644087876422,0.00067019,41692.0,41691.0,0.48536751]
[1644087876622,0.02056342,41697.0,41691.0,0.48536751]
[1644087876828,0.0006702,41694.0,41693.0,0.34785842]
[1644087877222,0.0006702,41694.0,41693.0,0.44785842]
[1644087877424,0.0006702,41694.0,41693.0,0.78334042]
[1644087877623,0.0006702,41694.0,41693.0,1.02422952]
[1644087877823,0.00026001,41699.0,41693.0,0.68874752]
[1644087878026,0.00026001,41701.0,41698.0,0.04988551]
[1644087878225,0.00268036,41702.0,41698.0,0.04988551]
[1644087878226,0.00294037,41702.0,41698.0,0.04988551]
[1644087878424,0.048044,41701.0,41698.0,0.04988551]
[1644087878826,0.34289109,41701.0,41698.0,0.04988551]
[1644087879628,0.34300558,41701.0,41692.0,0.19788551]
[1644087879886,0.08393283,41695.0,41692.0,0.048]
[1644087880083,0.00011449,41698.0,41688.0,0.04988551]
[1644087880283,0.04815849,41698.0,41685.0,0.06921676]
[1644087880482,0.37690943,41690.0,41685.0,0.06921676]
[1644087880682,0.37690943,41690.0,41686.0,0.27028313]
[1644087880880,0.37690943,41690.0,41685.0,0.06921676]
[1644087881085,0.048044,41689.0,41685.0,0.01933125]
[1644087881684,0.048044,41689.0,41682.0,0.04988551]
[1644087881881,0.048044,41689.0,41683.0,0.2420973]
[1644087882086,0.37690943,41690.0,41683.0,0.2420973]
[1644087882583,0.37690943,41690.0,41685.0,0.04988551]
[1644087883084,0.37690943,41690.0,41682.0,0.04988551]
[1644087883282,0.00011449,41686.0,41678.0,0.04988551]
[1644087883484,0.048044,41689.0,41675.0,0.01933304]
[1644087883485,0.3103041,41688.0,41675.0,0.01933304]
[1644087883734,0.048044,41687.0,41674.0,0.05]
[1644087884029,0.096044,41687.0,41674.0,0.05016628]
[1644087884226,0.048,41687.0,41678.0,0.25303112]
[1644087884426,0.048044,41686.0,41678.0,0.65365304]
[1644087884632,0.048,41685.0,41684.0,0.05]
[1644087885028,0.048044,41689.0,41685.0,0.39647114]
[1644087885230,0.37690943,41690.0,41687.0,0.20225351]
[1644087885430,0.37690943,41690.0,41685.0,0.39647114]
[1644087885431,0.048044,41689.0,41685.0,0.39647114]
[1644087886030,0.096044,41689.0,41684.0,0.05]
[1644087886434,0.096044,41689.0,41685.0,0.20638676]
[1644087886631,0.096044,41689.0,41684.0,0.05]
[1644087887031,0.096044,41689.0,41683.0,0.05]
[1644087887376,0.096044,41689.0,41684.0,0.38947239]
[1644087887574,0.086044,41689.0,41684.0,0.38947239]
[1644087887775,0.086044,41689.0,41686.0,0.19786862]
[1644087888175,0.048,41689.0,41686.0,0.19786862]
[1644087888776,0.048,41689.0,41687.0,0.05]
[1644087888977,0.00066805,41692.0,41687.0,0.05]
[1644087889178,0.00066805,41692.0,41691.0,0.39328008]
[1644087889381,0.00066805,41692.0,41691.0,0.87862608]
[1644087889577,0.34040936,41697.0,41693.0,0.21602792]
[1644087889779,0.34040936,41697.0,41693.0,0.26602792]
[1644087889981,0.34030933,41697.0,41693.0,0.26602792]
[1644087890177,0.00066805,41694.0,41693.0,0.60137392]
[1644087890379,0.00066805,41694.0,41693.0,0.70137392]
[1644087890977,0.00010003,41696.0,41693.0,0.70137392]
[1644087891220,0.00010003,41699.0,41695.0,0.385346]
[1644087891419,0.00010003,41700.0,41698.0,0.05]
[1644087891623,0.01871604,41701.0,41699.0,0.05]
[1644087891820,0.00010003,41700.0,41693.0,0.46602792]
[1644087892021,0.31970185,41701.0,41693.0,0.46602792]
[1644087892221,0.00010003,41700.0,41693.0,0.46602792]
[1644087892420,0.00066976,41699.0,41693.0,0.46602792]
[1644087893222,0.00066976,41699.0,41696.0,0.05]
[1644087893520,0.00010003,41700.0,41696.0,0.05]
[1644087893521,0.00010003,41700.0,41697.0,0.27288218]
[1644087893720,0.00066976,41698.0,41697.0,0.27288218]
[1644087893920,0.00066976,41698.0,41697.0,0.05]
[1644087894119,0.00066976,41698.0,41697.0,0.33377953]
[1644087894320,0.00066976,41698.0,41697.0,0.43377953]
[1644087894519,4.99952838,41705.0,41697.0,0.43377953]
[1644087894520,0.00010003,41704.0,41697.0,0.43377953]
[1644087894721,0.00066975,41700.0,41697.0,0.38377953]
[1644087894974,0.00066975,41700.0,41699.0,0.05]
[1644087895179,0.00066975,41700.0,41699.0,0.31141715]
[1644087895374,0.00066975,41700.0,41699.0,0.36141715]
[1644087895775,0.00010003,41702.0,41699.0,0.1]
[1644087895974,0.00066969,41702.0,41699.0,0.1]
[1644087896175,0.038065,41701.0,41699.0,0.1]
[1644087896377,0.038065,41700.0,41699.0,0.1]
[1644087896574,0.37736058,41700.0,41699.0,0.25714871]
[1644087896976,0.00010003,41704.0,41699.0,0.30714871]
[1644087897177,0.038065,41703.0,41702.0,0.05]
[1644087897376,4.99684974,41705.0,41702.0,0.05]
[1644087897377,4.99684974,41705.0,41702.0,0.32131317]
[1644087897781,4.99684974,41705.0,41702.0,0.42131317]
[1644087897977,4.99684974,41705.0,41703.0,0.24789582]
[1644087898176,4.99684974,41705.0,41704.0,0.25799083]
[1644087899719,4.99684974,41705.0,41703.0,0.39789582]
[1644087900118,4.99684974,41705.0,41704.0,0.2529599]
[1644087904573,4.99684974,41705.0,41704.0,0.48317089]
[1644087904773,4.99684974,41705.0,41704.0,0.3529599]
[1644087905175,4.99684974,41705.0,41703.0,0.24888208]
[1644087905378,0.038065,41704.0,41703.0,0.24888208]
[1644087907031,0.037065,41704.0,41703.0,0.24888208]
[1644087914020,0.037065,41704.0,41703.0,0.54888208]
[1644087914224,4.99684974,41705.0,41703.0,0.84688208]
[1644087914423,4.99684974,41705.0,41704.0,0.3]
[1644087914621,4.4476176,41705.0,41704.0,0.3]
[1644087914826,4.4476176,41705.0,41704.0,0.348]
[1644087915022,4.4476176,41705.0,41704.0,0.94662368]
[1644087915222,4.07995827,41705.0,41704.0,1.04662368]
[1644087917226,4.07995827,41705.0,41704.0,0.148]
[1644087917491,4.07995827,41705.0,41703.0,0.29888208]
[1644087918192,4.07995827,41705.0,41704.0,0.2264897]
[1644087919192,4.07995827,41705.0,41703.0,0.39888208]
[1644087919392,4.07995827,41705.0,41703.0,0.44888208]
[1644087920493,4.07995827,41705.0,41703.0,0.44388208]
[1644087921138,4.07895827,41705.0,41703.0,0.44388208]
[1644087923331,4.07895827,41705.0,41703.0,0.34888208]
[1644087923332,0.037084,41704.0,41703.0,0.34888208]
[1644087923735,0.037084,41704.0,41703.0,0.24888208]
[1644087924533,4.07895827,41705.0,41703.0,0.24888208]
[1644087924978,0.037084,41704.0,41703.0,0.24888208]
[1644087927181,4.07895827,41705.0,41703.0,0.24888208]
[1644087927581,0.037084,41704.0,41703.0,0.24888208]
[1644087929728,4.07895827,41705.0,41703.0,0.24888208]
[1644087929928,4.06895827,41705.0,41703.0,0.24888208]
[1644087931730,4.06895827,41705.0,41704.0,0.05]
[1644087932229,4.06895827,41705.0,41704.0,0.29882956]
[1644087932470,4.06895827,41705.0,41704.0,0.05]
[1644087933373,4.06895827,41705.0,41704.0,0.30886572]
[1644087933869,4.06895827,41705.0,41704.0,0.40886572]
[1644087935675,4.06895827,41705.0,41704.0,0.15]
[1644087935874,4.06895827,41705.0,41704.0,0.05]
[1644087936524,4.06895827,41705.0,41704.0,0.30296883]
[1644087937024,4.06895827,41705.0,41704.0,0.40296883]
[1644087938129,4.40495307,41705.0,41704.0,0.15]
[1644087938326,4.40495307,41705.0,41704.0,0.05]
[1644087938728,4.40495307,41705.0,41703.0,0.24888208]
[1644087939731,0.037084,41704.0,41703.0,0.24888208]
[1644087941177,4.40495307,41705.0,41703.0,0.24888208]
[1644087950376,4.06895827,41705.0,41703.0,0.24888208]
[1644087951628,4.06895827,41705.0,41703.0,0.24877]
[1644087952028,4.06895827,41705.0,41704.0,0.25097087]
[1644087953731,4.06895827,41705.0,41704.0,0.30097087]
[1644087953931,4.06895827,41705.0,41704.0,0.05]
[1644087954131,3.51979051,41705.0,41704.0,0.15]
[1644087954531,3.51979051,41705.0,41704.0,0.39766738]
[1644087955172,3.51979051,41705.0,41704.0,0.29766738]
[1644087955372,3.51979051,41705.0,41704.0,0.05]
[1644087955572,3.51979051,41705.0,41704.0,0.298021]
[1644087956375,3.51979051,41705.0,41704.0,0.05]
[1644087957774,3.51979051,41705.0,41704.0,0.31097646]
[1644087958176,3.51979051,41705.0,41704.0,0.41097646]
[1644087958841,3.51979051,41705.0,41704.0,0.15]
[1644087959440,3.51979051,41705.0,41704.0,0.05]
[1644087960543,3.51979051,41705.0,41703.0,0.34877]
[1644087960744,3.51979051,41705.0,41703.0,0.24877]
[1644087962982,3.85530365,41705.0,41703.0,0.24877]
[1644087963184,3.51979051,41705.0,41703.0,0.24877]
[1644087967226,3.51979051,41705.0,41703.0,0.29877]
[1644087975451,3.51979051,41705.0,41704.0,0.24789517]
[1644087976450,3.51979051,41705.0,41704.0,0.24815086]
[1644087976649,3.51979051,41705.0,41704.0,0.24910062]
[1644087976851,3.51979051,41705.0,41703.0,0.39877]
[1644087977050,3.51979051,41705.0,41703.0,0.29877]
[1644087985383,3.51979051,41705.0,41703.0,0.24877]
[1644087986287,3.51979051,41705.0,41703.0,0.29877]
[1644087988286,2.97062098,41705.0,41703.0,0.29877]
[1644087994287,2.97062098,41705.0,41703.0,0.24877]
[1644087994487,2.97062098,41705.0,41703.0,0.29877]
[1644087995887,2.97062098,41705.0,41703.0,0.24877]
[1644087996338,0.037084,41704.0,41703.0,0.24877]
[1644087996839,0.085084,41704.0,41703.0,0.19387]
[1644087997033,0.085084,41704.0,41703.0,0.13177]
[1644087997233,0.3595304,41696.0,41694.0,0.3]
[1644087997434,0.3595304,41696.0,41688.0,0.20529384]
[1644087997633,0.3595304,41696.0,41687.0,0.3]
[1644087998033,0.35974424,41696.0,41687.0,0.3]
[1644087998433,0.35974424,41696.0,41685.0,0.48516907]
[1644087998732,0.35974424,41696.0,41685.0,0.27987523]
[1644087999131,0.3595304,41696.0,41685.0,0.27987523]
[1644087999332,0.24603122,41693.0,41685.0,0.48516907]
[1644087999535,0.24603122,41693.0,41685.0,0.27987523]
[1644087999732,0.24603122,41693.0,41685.0,0.37987523]
[1644087999990,0.35974423,41696.0,41688.0,0.38629828]
[1644088000191,0.3595304,41696.0,41688.0,0.38629828]
[1644088000389,0.3595304,41696.0,41690.0,0.00066984]
[1644088000591,0.36020014,41696.0,41690.0,0.00066984]
[1644088000789,0.00066974,41696.0,41690.0,0.00066984]
[1644088000990,0.00066974,41696.0,41688.0,0.73173946]
[1644088001390,0.048,41697.0,41688.0,0.73173946]
[1644088001891,0.30780952,41700.0,41688.0,0.73173946]
[1644088002890,0.30780952,41700.0,41688.0,0.73038072]
[1644088002891,0.25199266,41697.0,41688.0,0.73038072]
[1644088003092,0.048,41696.0,41684.0,0.30016628]
[1644088003293,0.048,41696.0,41683.0,0.01845337]
[1644088003294,0.14307554,41696.0,41683.0,0.01845337]
[1644088003492,0.048,41696.0,41683.0,0.01361965]
[1644088003736,0.048,41696.0,41683.0,0.01345337]
[1644088004134,0.40216181,41690.0,41686.0,0.20817967]
[1644088004335,0.40216181,41690.0,41682.0,0.05]
[1644088004536,0.40216181,41690.0,41682.0,0.05016628]
[1644088005336,0.048,41691.0,41686.0,0.24664075]
[1644088006035,0.00070879,41693.0,41686.0,0.24664075]
[1644088006236,0.16731904,41696.0,41686.0,0.24664075]
[1644088006435,0.38530535,41691.0,41686.0,0.24234967]
[1644088006836,0.38530535,41691.0,41686.0,0.00070892]
[1644088007037,0.085084,41690.0,41686.0,0.00070892]
[1644088007484,0.085084,41690.0,41683.0,0.00016628]
[1644088007685,0.048,41690.0,41686.0,0.00070893]
[1644088007885,0.29734499,41689.0,41686.0,0.00070893]
[1644088008085,0.34534499,41689.0,41686.0,0.00070893]
[1644088008686,0.30826099,41689.0,41684.0,0.00016628]
[1644088008885,0.30826099,41689.0,41685.0,0.00070893]
[1644088009086,0.31134646,41686.0,41685.0,0.00070893]
[1644088009893,0.037084,41685.0,41684.0,0.00016628]
[1644088010089,0.31134646,41686.0,41683.0,0.00087524]
[1644088010289,0.31134646,41686.0,41683.0,0.00070896]
[1644088010487,0.31134646,41686.0,41683.0,0.00087524]
[1644088010891,0.037084,41685.0,41683.0,0.00087524]
[1644088011143,0.31134646,41686.0,41682.0,0.05016628]
[1644088011335,0.31134646,41686.0,41682.0,0.05070897]
[1644088012336,0.31134646,41686.0,41682.0,0.05]
[1644088012639,0.31134646,41686.0,41682.0,0.00070897]
[1644088012836,0.31134646,41686.0,41682.0,0.05070897]
[1644088013436,0.31134646,41686.0,41681.0,0.00016628]
[1644088013636,0.31134646,41686.0,41682.0,0.05070897]
[1644088014335,0.037084,41685.0,41682.0,0.05070897]
[1644088014735,0.037084,41685.0,41682.0,0.05]
[1644088014988,0.037084,41685.0,41681.0,0.00070898]
[1644088015197,0.037084,41685.0,41682.0,0.05]
[1644088015390,0.048,41689.0,41682.0,0.05]
[1644088015589,0.12290877,41693.0,41682.0,0.05016628]
[1644088015988,0.1222,41693.0,41683.0,0.25569577]
[1644088016191,0.1229088,41693.0,41685.0,0.00070893]
[1644088016389,0.27912998,41691.0,41685.0,0.2757504]
[1644088016590,0.62026769,41691.0,41685.0,0.00070893]
[1644088016791,0.037084,41690.0,41685.0,0.00070893]
[1644088017190,0.037084,41690.0,41683.0,0.00016628]
[1644088017391,0.037084,41690.0,41685.0,0.00070893]
[1644088017991,0.037084,41690.0,41685.0,0.00087521]
[1644088018190,0.34113771,41691.0,41685.0,0.00087521]
[1644088018392,0.34113771,41691.0,41685.0,0.00016628]
[1644088018647,0.34113771,41691.0,41685.0,0.00070893]
[1644088018836,0.34113771,41691.0,41685.0,0.00087521]
[1644088018837,0.34045355,41691.0,41685.0,0.00087521]
[1644088019438,0.34045355,41691.0,41685.0,0.00016628]
[1644088019638,0.34045355,41691.0,41686.0,0.00070893]
[1644088020642,0.34045355,41691.0,41685.0,0.00016628]
[1644088020843,0.34045355,41691.0,41686.0,0.00070892]
[1644088021643,0.1229088,41693.0,41686.0,0.24994373]
[1644088021849,0.06912492,41698.0,41686.0,0.24994373]
[1644088021850,0.06912492,41698.0,41686.0,0.24923481]
[1644088022050,0.06912492,41698.0,41694.0,0.05]
[1644088022051,0.01912492,41698.0,41694.0,0.05]
[1644088022246,0.02030438,41699.0,41695.0,0.3]
[1644088022485,0.02030438,41699.0,41698.0,0.2307994]
[1644088022885,0.02030438,41699.0,41696.0,0.37034053]
[1644088023289,0.02030438,41699.0,41698.0,0.05]
[1644088024085,0.02030438,41699.0,41698.0,0.30042611]
[1644088024286,0.1515208,41704.0,41698.0,0.40042611]
[1644088024488,0.00070874,41701.0,41698.0,0.40042611]
[1644088024785,0.00070874,41701.0,41700.0,0.05]
[1644088025286,0.1515208,41704.0,41700.0,0.31548502]
[1644088025487,2.97062098,41705.0,41700.0,0.31548502]
[1644088025691,2.97062098,41705.0,41700.0,0.41548502]
[1644088025887,2.97062098,41705.0,41703.0,0.05]
[1644088026139,2.97062098,41705.0,41704.0,0.26309259]
[1644088027236,2.97062098,41705.0,41703.0,0.15]
[1644088027634,2.97062098,41705.0,41704.0,0.25803964]
[1644088028633,2.97062098,41705.0,41704.0,0.24925393]
[1644088028835,2.97062098,41705.0,41703.0,0.15]
[1644088029034,2.97062098,41705.0,41704.0,0.24925393]
[1644088029235,2.97051489,41705.0,41704.0,0.24934175]
[1644088030184,2.97051489,41705.0,41704.0,0.25173592]
[1644088030386,2.97051489,41705.0,41703.0,0.15]
[1644088030584,2.97051489,41705.0,41703.0,0.05]
[1644088031092,2.97051489,41705.0,41704.0,0.2528151]
[1644088032585,2.97051489,41705.0,41704.0,0.24928919]
[1644088032786,2.97051489,41705.0,41704.0,0.25006102]
[1644088033385,2.97051489,41705.0,41704.0,0.24896449]
[1644088034439,2.97051489,41705.0,41704.0,0.29896449]
[1644088034640,2.97051489,41705.0,41704.0,0.34896449]
[1644088034839,2.97051489,41705.0,41704.0,0.44896449]
[1644088035044,2.97051489,41705.0,41704.0,0.49696449]
[1644088035245,2.28422429,41705.0,41704.0,0.49696449]
[1644088035642,2.28422429,41705.0,41704.0,0.49672449]
[1644088037684,2.28422429,41705.0,41704.0,0.73672449]
[1644088038085,2.28422429,41705.0,41704.0,0.48776]
[1644088038287,2.28422429,41705.0,41704.0,0.288]
[1644088039487,2.28422429,41705.0,41704.0,0.388]
[1644088039887,2.28422429,41705.0,41704.0,0.488]
[1644088040091,2.28422429,41705.0,41704.0,0.24]
[1644088040488,2.32130829,41705.0,41704.0,0.24]
[1644088042637,2.32130829,41705.0,41699.0,0.05]
[1644088042835,0.29591013,41702.0,41699.0,0.05]
[1644088044042,0.00070938,41703.0,41699.0,0.05]
[1644088044737,2.30606209,41705.0,41699.0,0.05]
[1644088044989,0.00070938,41703.0,41699.0,0.05]
[1644088045989,3.37989258,41705.0,41699.0,0.05]
[1644088046189,0.00070938,41703.0,41699.0,0.05]
[1644088046594,0.00070938,41703.0,41698.0,0.1]
[1644088046796,0.08022121,41698.0,41693.0,0.00070954]
[1644088046995,0.037084,41697.0,41693.0,0.00070954]
[1644088047191,0.08022121,41698.0,41687.0,0.24371715]
[1644088047390,0.08022121,41698.0,41686.0,0.5]
[1644088047391,0.048,41696.0,41686.0,0.5]
[1644088047591,0.048,41695.0,41691.0,0.22968202]
[1644088047892,0.3570403,41694.0,41689.0,0.00016628]
[1644088048391,0.3570403,41694.0,41688.0,0.05]
[1644088048647,0.048,41695.0,41689.0,0.0007068]
[1644088048842,0.048,41695.0,41691.0,0.22766186]
[1644088049642,0.048,41695.0,41691.0,0.54849997]
[1644088049845,0.048,41695.0,41691.0,0.54920676]
[1644088050043,0.20669077,41700.0,41691.0,0.54920676]
[1644088050844,0.20669077,41700.0,41691.0,0.54849997]
[1644088051042,0.037084,41699.0,41693.0,0.00070676]
[1644088052044,0.037084,41699.0,41691.0,0.54866625]
[1644088052245,0.44872638,41701.0,41693.0,0.00070676]
[1644088052486,0.037084,41700.0,41693.0,0.00070676]
[1644088053287,0.037084,41700.0,41693.0,0.00070677]
[1644088054290,0.037084,41700.0,41692.0,0.05027482]
[1644088054493,0.71629649,41701.0,41693.0,0.00070677]
[1644088054494,0.44815583,41701.0,41693.0,0.00070677]
[1644088055492,0.44815583,41701.0,41692.0,0.10027482]
[1644088055691,0.44815583,41701.0,41693.0,0.00070677]
[1644088055890,0.037084,41700.0,41693.0,0.00070677]
[1644088056334,0.037084,41700.0,41695.0,0.05]
[1644088056735,0.048,41701.0,41695.0,0.05]
[1644088056933,0.048,41701.0,41693.0,0.00070677]
[1644088057141,0.00070661,41703.0,41695.0,0.05]
[1644088057336,0.037084,41702.0,41695.0,0.05]
[1644088057738,0.037084,41702.0,41697.0,0.20139844]
[1644088058538,0.2958513,41703.0,41697.0,0.20139844]
[1644088059140,0.037084,41702.0,41697.0,0.20139844]
[1644088060184,0.2958513,41703.0,41698.0,0.05]
[1644088060386,0.29514468,41703.0,41697.0,0.25139844]
[1644088060584,0.037084,41702.0,41697.0,0.20139844]
[1644088060984,0.2958513,41703.0,41697.0,0.20139844]
[1644088061185,0.2958513,41703.0,41698.0,0.05]
[1644088061587,0.29514468,41703.0,41698.0,0.05]
[1644088061784,0.29585131,41703.0,41698.0,0.05]
[1644088062787,0.29514468,41703.0,41698.0,0.05]
[1644088062985,0.29585131,41703.0,41698.0,0.05]
[1644088063835,0.29585131,41703.0,41697.0,0.20139844]
[1644088064037,0.29514468,41703.0,41697.0,0.20139844]
[1644088064234,0.29585131,41703.0,41697.0,0.20139844]
[1644088064435,0.29585131,41703.0,41698.0,0.05]
[1644088064839,0.29585131,41703.0,41697.0,0.20139844]
[1644088065040,0.29585131,41703.0,41698.0,0.05]
[1644088065238,0.29514468,41703.0,41698.0,0.05]
[1644088065440,0.2958513,41703.0,41698.0,0.05]
[1644088065641,0.2958513,41703.0,41697.0,0.20139844]
[1644088065840,0.2958513,41703.0,41698.0,0.05]
[1644088066340,0.29514468,41703.0,41698.0,0.05]
[1644088066740,0.00070663,41703.0,41698.0,0.05]
[1644088067592,3.03422429,41705.0,41698.0,0.05]
[1644088067787,0.39590766,41703.0,41698.0,0.05]
[1644088068189,0.39590766,41703.0,41701.0,0.05]
[1644088068792,0.39565425,41703.0,41701.0,0.05]
[1644088068992,0.037084,41702.0,41701.0,0.05]
[1644088069192,0.39565425,41703.0,41701.0,0.05]
[1644088069392,0.037084,41702.0,41701.0,0.05]
[1644088070593,0.037084,41702.0,41697.0,0.42962895]
[1644088070792,0.037084,41702.0,41701.0,0.05]
[1644088076389,0.037084,41702.0,41701.0,0.04991504]
[1644088077390,0.39565425,41703.0,41701.0,0.04991504]
[1644088077591,0.037084,41702.0,41701.0,0.04991504]
[1644088077998,0.032084,41702.0,41701.0,0.04991504]
[1644088078491,0.39565425,41703.0,41701.0,0.04991504]
[1644088078736,0.00070718,41704.0,41701.0,0.04991504]
[1644088079337,0.00070718,41704.0,41698.0,0.1]
[1644088079540,3.03422429,41705.0,41698.0,0.05]
[1644088079839,3.37586404,41705.0,41697.0,0.52954399]
[1644088080038,3.37586404,41705.0,41697.0,0.32962895]
[1644088080236,3.37586404,41705.0,41699.0,0.04991504]
[1644088080838,3.39513037,41705.0,41699.0,0.04991504]
[1644088081036,3.39513037,41705.0,41698.0,0.43777996]
[1644088081037,3.05419778,41705.0,41703.0,0.04991504]
[1644088081238,3.05419778,41705.0,41704.0,0.23546595]
[1644088081442,3.05419778,41705.0,41704.0,0.28346595]
[1644088081443,2.50503162,41705.0,41704.0,0.28346595]
[1644088081640,2.50503162,41705.0,41704.0,0.33346595]
[1644088081839,2.50503162,41705.0,41704.0,0.248]
[1644088082246,2.50503162,41705.0,41704.0,0.73981016]